[Event "7th Cesme Open-C 2019"]
[Site "Cesme"]
[Date "2019.06.27"]
[Round "6"]
[White "Cekicoglu, Baris"]
[Black "Basdar, Atakan"]
[Result "1-0"]
[ECO "B06"]
[WhiteElo "1237"]
[BlackElo "1242"]
[Annotator "NA RC"]
[PlyCount "109"]
[EventDate "2019.06.24"]
[EventType "swiss"]
[EventCountry "TUR"]
[SourceTitle "playchess.com"]
[Source "ChessBase"]
[SourceQuality "1"]
[TimeControl "5400+30"]

1. e4 {[%emt 0:00:30]} g6 {[%emt 0:05:30]} 2. d4 {[%emt 0:00:30]} Bg7 {[%emt 0:00:00]} 3. Nc3 {[%emt 0:00:00]} d6 {[%emt 0:00:00]} 4. Be3 {[%emt 0:00:00]} c6 {[%emt 0:00:30]} 5. Qd2 {[%emt 0:00:00]} b5 {[%emt 0:00:00]} 6. O-O-O {[%emt 0:00:00]} a5 {[%emt 0:00:00]} 7. h4 {[%emt 0:00:30]} h5 {[%emt 0:00:30]} 8. Kb1 {[%emt 0:02:30]} Bd7 {[%emt 0:03:30]} 9. Nh3 {[%emt 0:05:30]} Nf6 {[%emt 0:03:30]} 10. f3 {[%emt 0:00:30]} Qc7 {[%emt 0:05:30]} 11. Bf4 {[%emt 0:03:30]} b4 {[%emt 0:04:30]} 12. Ne2 {[%emt 0:02:30]} e5 {[%emt 0:08:30]} 13. dxe5 {[%emt 0:00:30]} dxe5 {[%emt 0:00:00]} 14. Be3 {[%emt 0:00:30]} c5 {[%emt 0:00:00]} 15. Qd6 {[%emt 0:00:30]} Qxd6 {[%emt 0:00:30]} 16. Rxd6 {[%emt 0:00:30]} c4 {[%emt 0:01:30]} 17. Ng3 {[%emt 0:02:30]} Be6 {[%emt 0:02:30]} 18. Ng5 {[%emt 0:01:30]} Bf8 {[%emt 0:01:30]} 19. Rd2 {[%emt 0:02:30]} c3 {[%emt 0:00:30]} 20. bxc3 {[%emt 0:00:30]} bxc3 {[%emt 0:01:30]} 21. Rd3 {[%emt 0:00:30]} Bb4 {[%emt 0:00:30]} 22. Nxe6 {[%emt 0:00:30]} fxe6 {[%emt 0:00:30]} 23. a3 {[%emt 0:00:30]} Bxa3 {[%emt 0:00:30]} 24. Rxc3 {[%emt 0:00:30]} Be7 {[%emt 0:00:30]} 25. Rc8+ {[%emt 0:00:30]} Bd8 {[%emt 0:00:30]} 26. Bb5+ {[%emt 0:00:30]} Kf7 {[%emt 0:02:30]} 27. Rd1 {[%emt 0:00:30]} Be7 {[%emt 0:03:30]} 28. Rxh8 {[%emt 0:00:30]} Bf8 {[%emt 0:00:00]} 29. Bg5 {[%emt 0:00:30]} Nbd7 {[%emt 0:01:00]} 30. Bxd7 {[%emt 0:00:30]} Rb8+ {[%emt 0:00:30]} 31. Ka2 {[%emt 0:00:30]} Rb7 {[%emt 0:00:30]} 32. Bxf6 {[%emt 0:00:30]} a4 {[%emt 0:00:30]} 33. Bxe6+ {[%emt 0:00:30]} Kxf6 {[%emt 0:00:30]} 34. Rxf8+ {[%emt 0:00:30]} Kxe6 {[%emt 0:00:30]} 35. Rfd8 {[%emt 0:00:30]} Rc7 {[%emt 0:00:30]} 36. R1d6+ {[%emt 0:00:30]} Ke7 {[%emt 0:00:00]} 37. R6d7+ {[%emt 0:00:30]} Rxd7 {[%emt 0:00:00]} 38. Rxd7+ {[%emt 0:00:00]} Kxd7 {[%emt 0:00:30]} 39. Ka3 {[%emt 0:00:00]} Kc6 {[%emt 0:00:00]} 40. Kxa4 {[%emt 0:00:30]} Kc5 {[%emt 0:00:00]} 41. Kb3 {[%emt 0:00:00]} Kd4 {[%emt 0:00:30]} 42. Nf5+ {[%emt 0:00:00]} gxf5 {[%emt 0:00:30]} 43. exf5 {[%emt 0:00:30]} Ke3 {[%emt 0:00:30]} 44. f6 {[%emt 0:00:00]} Kf2 {[%emt 0:00:00]} 45. f7 {[%emt 0:00:00]} Kxg2 {[%emt 0:00:00]} 46. f8=Q {[%emt 0:00:30]} Kh3 {[%emt 0:00:00]} 47. Qf6 {[%emt 0:00:30]} Kg3 {[%emt 0:00:00]} 48. c4 {[%emt 0:00:00]} Kh3 {[%emt 0:00:00]} 49. c5 {[%emt 0:00:00]} Kg3 {[%emt 0:00:00]} 50. c6 {[%emt 0:00:00]} Kh3 {[%emt 0:00:30]} 51. c7 {[%emt 0:00:00]} Kg3 {[%emt 0:00:30]} 52. c8=Q {[%emt 0:00:30]} Kg2 {[%emt 0:00:30]} 53. Qc2+ {[%emt 0:00:00]} Kf1 {[%emt 0:00:00]} 54. Qa6+ {[%emt 0:00:00]} Kg1 {[%emt 0:00:00]} 55. Qa1# {[%emt 0:00:00]} 1-0

[Event "7th Cesme Open-C 2019"]
[Site "Cesme"]
[Date "2019.06.28"]
[Round "7"]
[White "Kaya, Nehar Baris"]
[Black "Demirkaya, Ataberk"]
[Result "0-1"]
[ECO "A48"]
[WhiteElo "1409"]
[BlackElo "1346"]
[Annotator "NA"]
[PlyCount "58"]
[EventDate "2019.06.24"]
[EventType "swiss"]
[EventCountry "TUR"]
[SourceTitle "playchess.com"]
[Source "ChessBase"]
[SourceQuality "1"]
[TimeControl "5400+30"]

1. d4 {[%emt 0:00:30]} Nf6 {[%emt 0:00:30]} 2. Bf4 {[%emt 0:00:00]} g6 {[%emt 0:00:30]} 3. Nf3 {[%emt 0:00:00]} Bg7 {[%emt 0:00:30]} 4. e3 {[%emt 0:00:30]} O-O {[%emt 0:00:00]} 5. Bd3 {[%emt 0:00:00]} d6 {[%emt 0:00:00]} 6. Nbd2 {[%emt 0:01:00]} Nbd7 {[%emt 0:00:30]} 7. h3 {[%emt 0:01:30]} Re8 {[%emt 0:00:30]} 8. c3 {[%emt 0:35:30]} e5 {[%emt 0:03:30]} 9. Bg5 {[%emt 0:00:00]} h6 {[%emt 0:00:30]} 10. Bxf6 {[%emt 0:00:00]} Nxf6 {[%emt 0:01:30]} 11. Qc2 {[%emt 0:00:30]} Qe7 {[%emt 0:04:30]} 12. e4 {[%emt 0:04:30]} exd4 {[%emt 0:09:30]} 13. cxd4 {[%emt 0:00:30]} Nxe4 {[%emt 0:02:30]} 14. O-O {[%emt 0:20:30]} Nxd2 {[%emt 0:02:30]} 15. Qxd2 {[%emt 0:00:30]} Qf6 {[%emt 0:06:30]} 16. Rac1 {[%emt 0:01:30]} c6 {[%emt 0:03:30]} 17. Qb4 {[%emt 0:06:30]} Qf4 {[%emt 0:14:30]} 18. Qb3 {[%emt 0:00:30]} d5 {[%emt 0:11:30]} 19. Rfe1 {[%emt 0:02:30]} Bxh3 {[%emt 0:01:30]} 20. Qxb7 {[%emt 0:03:30]} Bxg2 {[%emt 0:02:30]} 21. Rxe8+ {[%emt 0:06:10]} Rxe8 {[%emt 0:00:30]} 22. Qxc6 {[%emt 0:00:00]} Re6 {[%emt 0:05:30]} 23. Qc8+ {[%emt 0:00:21]} Kh7 {[%emt 0:01:30]} 24. Kxg2 {[%emt 0:05:08]} Qg4+ {[%emt 0:00:00]} 25. Kh2 {[%emt 0:04:16]} Qxf3 {[%emt 0:00:00]} 26. Qc2 {[%emt 0:00:33]} Bxd4 {[%emt 0:01:30]} 27. Rf1 {[%emt 0:01:33]} Be5+ {[%emt 0:00:30]} 28. Kg1 {[%emt 0:00:43]} Qg4+ {[%emt 0:00:00]} 29. Kh1 {[%emt 0:00:18]} Qh3+ {[%emt 0:00:00]} 0-1

[Event "7th Cesme Open-C 2019"]
[Site "Cesme"]
[Date "2019.06.28"]
[Round "7"]
[White "Kose, Arat Uygar"]
[Black "Atasoy, Ata"]
[Result "0-1"]
[ECO "B22"]
[WhiteElo "1377"]
[BlackElo "1459"]
[Annotator "NA"]
[PlyCount "96"]
[EventDate "2019.06.24"]
[EventType "swiss"]
[EventCountry "TUR"]
[SourceTitle "playchess.com"]
[Source "ChessBase"]
[SourceQuality "1"]
[TimeControl "5400+30"]

1. e4 {[%emt 0:00:30]} c5 {[%emt 0:00:30]} 2. Nf3 {[%emt 0:00:30]} e6 {[%emt 0:00:30]} 3. c3 {[%emt 0:00:00]} Nf6 {[%emt 0:00:00]} 4. e5 {[%emt 0:00:00]} Nd5 {[%emt 0:00:00]} 5. d4 {[%emt 0:00:00]} cxd4 {[%emt 0:00:30]} 6. Qxd4 {[%emt 0:00:00]} Nc6 {[%emt 0:03:30]} 7. Qe4 {[%emt 0:01:30]} d6 {[%emt 0:06:30]} 8. Nbd2 {[%emt 0:00:30]} Nxe5 {[%emt 0:08:30]} 9. Nxe5 {[%emt 0:01:30]} dxe5 {[%emt 0:00:00]} 10. Qxe5 {[%emt 0:00:30]} Qf6 {[%emt 0:11:00]} 11. Qxf6 {[%emt 0:03:30]} Nxf6 {[%emt 0:00:30]} 12. Bd3 {[%emt 0:02:30]} Bd7 {[%emt 0:05:30]} 13. Ne4 {[%emt 0:03:30]} Bc6 {[%emt 0:11:30]} 14. Nxf6+ {[%emt 0:02:30]} gxf6 {[%emt 0:00:30]} 15. Rg1 {[%emt 0:03:30]} Rd8 {[%emt 0:02:30]} 16. Ke2 {[%emt 0:03:30]} Bc5 {[%emt 0:05:30]} 17. Be3 {[%emt 0:03:30]} Bxe3 {[%emt 0:01:30]} 18. Kxe3 {[%emt 0:02:30]} Ke7 {[%emt 0:00:30]} 19. Rad1 {[%emt 0:02:30]} Rhg8 {[%emt 0:03:30]} 20. g3 {[%emt 0:03:30]} f5 {[%emt 0:02:30]} 21. Be2 {[%emt 0:06:30]} Rxd1 {[%emt 0:03:30]} 22. Rxd1 {[%emt 0:00:30]} e5 {[%emt 0:04:30]} 23. Bf3 {[%emt 0:04:30]} Bxf3 {[%emt 0:03:30]} 24. Kxf3 {[%emt 0:00:30]} Ke6 {[%emt 0:00:30]} 25. h3 {[%emt 0:04:30]} h5 {[%emt 0:00:30]} 26. h4 {[%emt 0:03:30]} Rc8 {[%emt 0:03:30]} 27. Ke3 {[%emt 0:04:30]} f6 {[%emt 0:02:30]} 28. Rd3 {[%emt 0:02:30]} b5 {[%emt 0:02:15]} 29. Kd2 {[%emt 0:02:30]} a5 {[%emt 0:09:03]} 30. Kc2 {[%emt 0:05:30]} Rc5 {[%emt 0:06:43]} 31. Rd8 {[%emt 0:03:30]} Kf7 {[%emt 0:01:51]} 32. Kb3 {[%emt 0:02:30]} Rc4 {[%emt 0:01:21]} 33. Rd5 {[%emt 0:01:30]} a4+ {[%emt 0:00:51]} 34. Ka3 {[%emt 0:01:30]} f4 {[%emt 0:00:06]} 35. b3 {[%emt 0:02:30]} axb3 {[%emt 0:01:13]} 36. axb3 {[%emt 0:00:30]} fxg3 {[%emt 0:00:32]} 37. fxg3 {[%emt 0:03:30]} Rxc3 {[%emt 0:00:43]} 38. Rxb5 {[%emt 0:00:00]} Rxg3 {[%emt 0:00:00]} 39. Rb7+ {[%emt 0:00:00]} Kg6 {[%emt 0:00:20]} 40. Ka4 {[%emt 0:00:30]} Rg4+ {[%emt 0:00:17]} 41. b4 {[%emt 0:00:00]} Rxh4 {[%emt 0:00:47]} 42. Ka5 {[%emt 0:00:00]} Rh1 {[%emt 0:00:30]} 43. b5 {[%emt 0:00:30]} h4 {[%emt 0:00:33]} 44. b6 {[%emt 0:00:00]} h3 {[%emt 0:00:29]} 45. Ra7 {[%emt 0:02:00]} h2 {[%emt 0:00:18]} 46. b7 {[%emt 0:00:30]} Ra1+ {[%emt 0:00:30]} 47. Kb6 {[%emt 0:00:00]} Rb1+ {[%emt 0:00:00]} 48. Kc7 {[%emt 0:01:00]} Rxb7+ {[%emt 0:00:25]} 0-1

[Event "7th Cesme Open-C 2019"]
[Site "Cesme"]
[Date "2019.06.28"]
[Round "7"]
[White "Yenen, Utku"]
[Black "Cekicoglu, Baris"]
[Result "1-0"]
[ECO "B01"]
[WhiteElo "1341"]
[BlackElo "1237"]
[Annotator "NA"]
[PlyCount "76"]
[EventDate "2019.06.24"]
[EventType "swiss"]
[EventCountry "TUR"]
[SourceTitle "playchess.com"]
[Source "ChessBase"]
[SourceQuality "1"]
[TimeControl "5400+30"]

1. e4 {[%emt 0:00:30]} d5 {[%emt 0:00:30]} 2. exd5 {[%emt 0:00:30]} Qxd5 {[%emt 0:00:00]} 3. Nc3 {[%emt 0:00:00]} Qd6 {[%emt 0:00:00]} 4. d4 {[%emt 0:00:00]} Nf6 {[%emt 0:00:00]} 5. Nf3 {[%emt 0:03:30]} a6 {[%emt 0:00:00]} 6. Be2 {[%emt 0:00:30]} e6 {[%emt 0:03:30]} 7. h3 {[%emt 0:01:30]} Be7 {[%emt 0:00:30]} 8. O-O {[%emt 0:00:00]} O-O {[%emt 0:00:30]} 9. Be3 {[%emt 0:00:00]} b5 {[%emt 0:00:30]} 10. Nd2 {[%emt 0:03:30]} Bb7 {[%emt 0:00:30]} 11. Bf3 {[%emt 0:00:30]} Nd5 {[%emt 0:00:30]} 12. Nxd5 {[%emt 0:06:30]} Bxd5 {[%emt 0:00:30]} 13. Bxd5 {[%emt 0:01:30]} Qxd5 {[%emt 0:00:30]} 14. Qf3 {[%emt 0:03:30]} c6 {[%emt 0:03:30]} 15. b3 {[%emt 0:02:30]} Nd7 {[%emt 0:12:30]} 16. c4 {[%emt 0:12:30]} Qxf3 {[%emt 0:00:30]} 17. gxf3 {[%emt 0:00:30]} e5 {[%emt 0:07:30]} 18. Rfd1 {[%emt 0:14:30]} f5 {[%emt 0:11:30]} 19. f4 {[%emt 0:06:30]} exf4 {[%emt 0:00:30]} 20. Bxf4 {[%emt 0:00:30]} Bf6 {[%emt 0:00:00]} 21. Nf3 {[%emt 0:05:30]} Rfe8 {[%emt 0:16:00]} 22. Re1 {[%emt 0:06:30]} bxc4 {[%emt 0:01:30]} 23. bxc4 {[%emt 0:00:30]} c5 {[%emt 0:03:30]} 24. Ne5 {[%emt 0:00:30]} Bxe5 {[%emt 0:00:30]} 25. dxe5 {[%emt 0:00:00]} g5 {[%emt 0:01:30]} 26. Rad1 {[%emt 0:07:00]} Nb6 {[%emt 0:07:30]} 27. Bxg5 {[%emt 0:00:30]} Nxc4 {[%emt 0:00:30]} 28. e6 {[%emt 0:00:30]} Rab8 {[%emt 0:05:30]} 29. e7 {[%emt 0:02:30]} Kf7 {[%emt 0:00:30]} 30. Rd8 {[%emt 0:00:30]} Rg8 {[%emt 0:04:30]} 31. e8=Q+ {[%emt 0:02:39]} Rxe8 {[%emt 0:00:30]} 32. Rexe8 {[%emt 0:00:21]} Rb1+ {[%emt 0:00:30]} 33. Kg2 {[%emt 0:00:30]} Kg6 {[%emt 0:00:34]} 34. Rg8+ {[%emt 0:00:30]} Kh5 {[%emt 0:00:26]} 35. Rd7 {[%emt 0:00:30]} h6 {[%emt 0:00:30]} 36. Rh7 {[%emt 0:00:30]} Rb6 {[%emt 0:00:52]} 37. Bf4 {[%emt 0:01:21]} Nb2 {[%emt 0:00:46]} 38. Kg3 {[%emt 0:01:07]} a5 {[%emt 0:01:42]} 1-0

[Event "7th Cesme Open-C 2019"]
[Site "Cesme"]
[Date "2019.06.28"]
[Round "7"]
[White "Tekin, Utku Berk"]
[Black "Ceylan, Goktug"]
[Result "0-1"]
[ECO "A45"]
[WhiteElo "1303"]
[BlackElo "1283"]
[Annotator "NA"]
[PlyCount "92"]
[EventDate "2019.06.24"]
[EventType "swiss"]
[EventCountry "TUR"]
[SourceTitle "playchess.com"]
[Source "ChessBase"]
[SourceQuality "1"]
[TimeControl "5400+30"]

1. d4 {[%emt 0:00:30]} Nf6 {[%emt 0:00:30]} 2. Bg5 {[%emt 0:00:00]} g6 {[%emt 0:01:30]} 3. Bxf6 {[%emt 0:01:00]} exf6 {[%emt 0:00:30]} 4. c4 {[%emt 0:03:30]} Bg7 {[%emt 0:01:30]} 5. Nc3 {[%emt 0:00:30]} O-O {[%emt 0:00:30]} 6. e3 {[%emt 0:00:30]} d6 {[%emt 0:01:30]} 7. Bd3 {[%emt 0:01:30]} f5 {[%emt 0:01:30]} 8. Nge2 {[%emt 0:01:30]} c5 {[%emt 0:05:30]} 9. d5 {[%emt 0:17:30]} Nd7 {[%emt 0:01:30]} 10. Qc2 {[%emt 0:01:30]} Ne5 {[%emt 0:05:30]} 11. Rb1 {[%emt 0:01:30]} b6 {[%emt 0:12:30]} 12. b4 {[%emt 0:05:30]} Re8 {[%emt 0:04:30]} 13. bxc5 {[%emt 0:05:30]} bxc5 {[%emt 0:00:30]} 14. O-O {[%emt 0:04:30]} Ba6 {[%emt 0:17:30]} 15. Nb5 {[%emt 0:02:30]} Bxb5 {[%emt 0:01:30]} 16. Rxb5 {[%emt 0:00:30]} Qc7 {[%emt 0:01:30]} 17. Nc3 {[%emt 0:07:30]} a6 {[%emt 0:04:30]} 18. Rb3 {[%emt 0:01:30]} Qa5 {[%emt 0:02:30]} 19. Rfb1 {[%emt 0:07:30]} Nxd3 {[%emt 0:06:30]} 20. Qxd3 {[%emt 0:00:30]} Bxc3 {[%emt 0:03:30]} 21. Qxc3 {[%emt 0:00:30]} Qxa2 {[%emt 0:01:30]} 22. R3b2 {[%emt 0:00:30]} Qa4 {[%emt 0:00:30]} 23. Rb7 {[%emt 0:01:30]} Red8 {[%emt 0:01:30]} 24. Qf6 {[%emt 0:01:30]} Qe8 {[%emt 0:00:30]} 25. Re7 {[%emt 0:00:30]} Qf8 {[%emt 0:00:30]} 26. Rbb7 {[%emt 0:00:30]} Rab8 {[%emt 0:00:30]} 27. Rxf7 {[%emt 0:00:30]} Rxb7 {[%emt 0:01:30]} 28. Rxf8+ {[%emt 0:00:30]} Rxf8 {[%emt 0:00:00]} 29. Qe6+ {[%emt 0:01:30]} Rff7 {[%emt 0:01:00]} 30. h4 {[%emt 0:02:30]} Rbd7 {[%emt 0:00:30]} 31. h5 {[%emt 0:03:30]} Kg7 {[%emt 0:00:30]} 32. hxg6 {[%emt 0:00:30]} hxg6 {[%emt 0:00:30]} 33. Qe8 {[%emt 0:00:30]} a5 {[%emt 0:00:30]} 34. Qb8 {[%emt 0:03:30]} Kh7 {[%emt 0:01:30]} 35. Qb5 {[%emt 0:08:15]} Ra7 {[%emt 0:00:30]} 36. Qa4 {[%emt 0:01:28]} Rfb7 {[%emt 0:01:30]} 37. Kf1 {[%emt 0:00:19]} Rb4 {[%emt 0:00:00]} 38. Qc6 {[%emt 0:08:36]} a4 {[%emt 0:01:00]} 39. Qxd6 {[%emt 0:00:32]} a3 {[%emt 0:00:00]} 40. Qxc5 {[%emt 0:00:16]} Rbb7 {[%emt 0:00:00]} 41. Qd4 {[%emt 0:00:44]} a2 {[%emt 0:00:30]} 42. Qh4+ {[%emt 0:00:24]} Kg7 {[%emt 0:00:00]} 43. d6 {[%emt 0:01:26]} a1=Q+ {[%emt 0:00:00]} 44. Ke2 {[%emt 0:00:00]} Ra2+ {[%emt 0:01:30]} 45. Kf3 {[%emt 0:00:13]} Qd1+ {[%emt 0:00:00]} 46. Kf4 {[%emt 0:00:00]} Qxd6+ {[%emt 0:00:00]} 0-1

[Event "7th Cesme Open-C 2019"]
[Site "Cesme"]
[Date "2019.06.29"]
[Round "8"]
[White "Atasoy, Ata"]
[Black "Aysakar, Atakan"]
[Result "1-0"]
[ECO "C88"]
[WhiteElo "1459"]
[BlackElo "1212"]
[Annotator "NA"]
[PlyCount "75"]
[EventDate "2019.06.24"]
[EventType "swiss"]
[EventCountry "TUR"]
[SourceTitle "playchess.com"]
[Source "ChessBase"]
[SourceQuality "1"]
[TimeControl "5400+30"]

1. e4 {[%emt 0:00:30]} e5 {[%emt 0:00:30]} 2. Nf3 {[%emt 0:00:30]} Nc6 {[%emt 0:00:30]} 3. Bb5 {[%emt 0:00:00]} a6 {[%emt 0:00:00]} 4. Ba4 {[%emt 0:00:00]} Nf6 {[%emt 0:00:00]} 5. O-O {[%emt 0:00:00]} Be7 {[%emt 0:00:30]} 6. d3 {[%emt 0:00:00]} b5 {[%emt 0:01:30]} 7. Bb3 {[%emt 0:00:30]} O-O {[%emt 0:02:30]} 8. a4 {[%emt 0:02:30]} b4 {[%emt 0:02:30]} 9. Re1 {[%emt 0:02:30]} d6 {[%emt 0:02:30]} 10. c3 {[%emt 0:00:30]} Bg4 {[%emt 0:02:30]} 11. h3 {[%emt 0:01:30]} Bh5 {[%emt 0:01:30]} 12. Nbd2 {[%emt 0:05:30]} a5 {[%emt 0:05:30]} 13. Qc2 {[%emt 0:10:30]} Qd7 {[%emt 0:04:30]} 14. Nh2 {[%emt 0:06:30]} h6 {[%emt 0:08:30]} 15. Ndf1 {[%emt 0:06:30]} Rab8 {[%emt 0:06:30]} 16. Ng3 {[%emt 0:01:30]} Bg6 {[%emt 0:00:30]} 17. Nf3 {[%emt 0:01:30]} Rfe8 {[%emt 0:02:30]} 18. Bc4 {[%emt 0:06:30]} Na7 {[%emt 0:01:30]} 19. Nh4 {[%emt 0:10:30]} Kh7 {[%emt 0:06:30]} 20. Nxg6 {[%emt 0:08:30]} fxg6 {[%emt 0:00:00]} 21. Be3 {[%emt 0:09:30]} c6 {[%emt 0:07:00]} 22. d4 {[%emt 0:10:18]} Bd8 {[%emt 0:08:30]} 23. Rad1 {[%emt 0:03:18]} exd4 {[%emt 0:07:30]} 24. Bxd4 {[%emt 0:03:34]} d5 {[%emt 0:08:30]} 25. Bd3 {[%emt 0:06:17]} b3 {[%emt 0:06:44]} 26. Qb1 {[%emt 0:00:52]} Re6 {[%emt 0:03:05]} 27. exd5 {[%emt 0:00:37]} Rxe1+ {[%emt 0:01:50]} 28. Rxe1 {[%emt 0:00:03]} Nxd5 {[%emt 0:00:54]} 29. Bxg6+ {[%emt 0:00:11]} Kg8 {[%emt 0:01:18]} 30. Re8+ {[%emt 0:00:16]} Qxe8 {[%emt 0:00:02]} 31. Bxe8 {[%emt 0:00:00]} Bf6 {[%emt 0:01:10]} 32. Bxf6 {[%emt 0:02:55]} Nxf6 {[%emt 0:00:36]} 33. Bg6 {[%emt 0:00:29]} c5 {[%emt 0:01:52]} 34. Qe1 {[%emt 0:00:38]} Kh8 {[%emt 0:01:22]} 35. Qe7 {[%emt 0:00:34]} Ra8 {[%emt 0:01:45]} 36. Nf5 {[%emt 0:00:16]} Rg8 {[%emt 0:01:08]} 37. Qxa7 {[%emt 0:00:07]} Nh7 {[%emt 0:00:00]} 38. Nxh6 {[%emt 0:00:26]} 1-0

[Event "7th Cesme Open-C 2019"]
[Site "Cesme"]
[Date "2019.06.29"]
[Round "8"]
[White "Demirkaya, Ataberk"]
[Black "Tas, Yasar Asil"]
[Result "0-1"]
[ECO "D43"]
[WhiteElo "1346"]
[BlackElo "1169"]
[Annotator "NA"]
[PlyCount "106"]
[EventDate "2019.06.24"]
[EventType "swiss"]
[EventCountry "TUR"]
[SourceTitle "playchess.com"]
[Source "ChessBase"]
[SourceQuality "1"]
[TimeControl "5400+30"]

1. d4 {[%emt 0:00:30]} Nf6 {[%emt 0:00:30]} 2. c4 {[%emt 0:00:00]} e6 {[%emt 0:00:30]} 3. Nf3 {[%emt 0:00:00]} d5 {[%emt 0:00:00]} 4. Nc3 {[%emt 0:00:30]} c6 {[%emt 0:00:00]} 5. Bf4 {[%emt 0:00:30]} Bd6 {[%emt 0:00:00]} 6. Bg3 {[%emt 0:00:30]} O-O {[%emt 0:01:00]} 7. e3 {[%emt 0:00:00]} Ne4 {[%emt 0:01:30]} 8. Nxe4 {[%emt 0:02:00]} dxe4 {[%emt 0:00:30]} 9. Nd2 {[%emt 0:00:00]} f5 {[%emt 0:00:30]} 10. c5 {[%emt 0:01:00]} Bc7 {[%emt 0:00:30]} 11. Bxc7 {[%emt 0:01:30]} Qxc7 {[%emt 0:00:30]} 12. Bc4 {[%emt 0:00:00]} Na6 {[%emt 0:01:30]} 13. a3 {[%emt 0:02:00]} Qe7 {[%emt 0:00:30]} 14. Bxa6 {[%emt 0:04:30]} bxa6 {[%emt 0:00:30]} 15. Nc4 {[%emt 0:00:30]} f4 {[%emt 0:01:30]} 16. Qd2 {[%emt 0:01:30]} Qg5 {[%emt 0:04:30]} 17. O-O-O {[%emt 0:03:30]} Qd5 {[%emt 0:02:30]} 18. Qc3 {[%emt 0:00:30]} Rb8 {[%emt 0:02:30]} 19. Rd2 {[%emt 0:08:30]} a5 {[%emt 0:04:30]} 20. Nxa5 {[%emt 0:02:30]} Ba6 {[%emt 0:01:30]} 21. b4 {[%emt 0:00:30]} Bd3 {[%emt 0:00:30]} 22. Qb3 {[%emt 0:02:30]} Qd7 {[%emt 0:01:30]} 23. Re1 {[%emt 0:02:30]} Kh8 {[%emt 0:01:30]} 24. Nc4 {[%emt 0:09:30]} Qd5 {[%emt 0:01:30]} 25. Na5 {[%emt 0:00:30]} Qd7 {[%emt 0:01:30]} 26. f3 {[%emt 0:04:30]} Qc7 {[%emt 0:01:30]} 27. Qxe6 {[%emt 0:12:30]} Qxa5 {[%emt 0:04:30]} 28. Rxd3 {[%emt 0:00:30]} Rxb4 {[%emt 0:00:30]} 29. Qxe4 {[%emt 0:10:30]} Rc4+ {[%emt 0:16:30]} 30. Kd1 {[%emt 0:01:30]} Rb8 {[%emt 0:03:30]} 31. Rd2 {[%emt 0:02:30]} Qxa3 {[%emt 0:10:30]} 32. exf4 {[%emt 0:02:30]} Rc1+ {[%emt 0:00:30]} 33. Ke2 {[%emt 0:00:00]} Rxe1+ {[%emt 0:02:30]} 34. Kxe1 {[%emt 0:00:00]} Qc1+ {[%emt 0:01:30]} 35. Ke2 {[%emt 0:01:30]} Qg1 {[%emt 0:00:30]} 36. Kd3 {[%emt 0:10:33]} Qf1+ {[%emt 0:01:30]} 37. Qe2 {[%emt 0:00:38]} Qb1+ {[%emt 0:03:30]} 38. Rc2 {[%emt 0:00:36]} Qb3+ {[%emt 0:00:30]} 39. Kd2 {[%emt 0:01:19]} Qb4+ {[%emt 0:00:30]} 40. Kd1 {[%emt 0:01:44]} Qxd4+ {[%emt 0:00:30]} 41. Qd2 {[%emt 0:01:11]} Qg1+ {[%emt 0:00:30]} 42. Ke2 {[%emt 0:00:30]} Qxg2+ {[%emt 0:00:30]} 43. Kd1 {[%emt 0:02:25]} Qxf3+ {[%emt 0:00:30]} 44. Qe2 {[%emt 0:00:34]} Rd8+ {[%emt 0:00:30]} 45. Rd2 {[%emt 0:01:46]} Rxd2+ {[%emt 0:01:30]} 46. Kxd2 {[%emt 0:00:30]} Qxe2+ {[%emt 0:00:00]} 47. Kxe2 {[%emt 0:00:07]} Kg8 {[%emt 0:00:00]} 48. Kd3 {[%emt 0:00:33]} Kf7 {[%emt 0:00:00]} 49. Ke4 {[%emt 0:00:02]} Ke6 {[%emt 0:00:00]} 50. h4 {[%emt 0:00:34]} g6 {[%emt 0:00:30]} 51. Kd4 {[%emt 0:00:46]} Kf5 {[%emt 0:00:30]} 52. Kc4 {[%emt 0:00:01]} Kxf4 {[%emt 0:00:30]} 53. Kb4 {[%emt 0:00:03]} Ke5 {[%emt 0:00:00]} 0-1